Department Family,Entity,Date,Expenses Type,Expense Area,Supplier,Transaction Number,  Total  ,
Department of Health,The Christie NHS Foundation Trust,26/09/2019,Drugs,Drugs,ALCURA UK LIMITED,0000625203," 67,240.48  ",
Department of Health,The Christie NHS Foundation Trust,26/09/2019,PET Scans- Aug 19,Christie Medical Physics,ALLIANCE MEDICAL LTD,0000623791," 128,620.00  ",
Department of Health,The Christie NHS Foundation Trust,05/09/2019,Drugs,Christie Medical Physics,ALLIANCE MEDICAL RADIOPHARMACY LIMITED,0000622326," 46,401.42  ",
Department of Health,The Christie NHS Foundation Trust,26/09/2019,Printing Oct 19-Dec 19,Corporate,APOGEE CORPORATION LTD,0000623783," 32,128.20  ",
Department of Health,The Christie NHS Foundation Trust,05/09/2019,Drugs,Drugs,BAXTER HEALTHCARE LTD,0000622878," 611,431.64  ",
Department of Health,The Christie NHS Foundation Trust,12/09/2019,Drugs,Drugs,BAXTER HEALTHCARE LTD,0000622879," 130,414.61  ",
Department of Health,The Christie NHS Foundation Trust,19/09/2019,Drugs,Drugs,BAXTER HEALTHCARE LTD,0000622897," 227,352.76  ",
Department of Health,The Christie NHS Foundation Trust,19/09/2019,Drugs,Drugs,BAXTER HEALTHCARE LTD,0000623000," 131,150.12  ",
Department of Health,The Christie NHS Foundation Trust,12/09/2019,Drugs,Drugs,BAXTER HEALTHCARE LTD,0000623259," 45,519.69  ",
Department of Health,The Christie NHS Foundation Trust,26/09/2019,Drugs,Drugs,BAXTER HEALTHCARE LTD,0000623638," 188,088.78  ",
Department of Health,The Christie NHS Foundation Trust,26/09/2019,Drugs,Drugs,BAXTER HEALTHCARE LTD,0000625016," 112,142.39  ",
Department of Health,The Christie NHS Foundation Trust,26/09/2019,Drugs,Drugs,BAXTER HEALTHCARE LTD,0000625017," 108,680.48  ",
Department of Health,The Christie NHS Foundation Trust,26/09/2019,Drugs,Drugs,BAXTER HEALTHCARE LTD,0000625018," 100,785.58  ",
Department of Health,The Christie NHS Foundation Trust,26/09/2019,Drugs,Drugs,BAXTER HEALTHCARE LTD,0000625019," 100,596.80  ",
Department of Health,The Christie NHS Foundation Trust,26/09/2019,Drugs,Drugs,BAXTER HEALTHCARE LTD,0000625021," 97,697.48  ",
Department of Health,The Christie NHS Foundation Trust,12/09/2019,Medical Equipment Maintenance Contract,Clinical Support & Specialist Surgery,CPP FACILITIES LLP,0000622437," 230,505.99  ",
Department of Health,The Christie NHS Foundation Trust,27/09/2019,Medical Equipment Maintenance Contract,Clinical Support & Specialist Surgery,CPP FACILITIES LLP,0000624775," 206,245.36  ",
Department of Health,The Christie NHS Foundation Trust,05/09/2019,CRC Allowances 18 19,Estates & Facilities,DEPARTMENT OF ENERGY AND CLIMATE CHANGE,0000623299," 46,317.30  ",
Department of Health,The Christie NHS Foundation Trust,19/09/2019,Energy Contract Aug 19,Network Services,EDF ENERGY,0000623880," 40,474.26  ",
Department of Health,The Christie NHS Foundation Trust,19/09/2019,Energy Contract Jun 19,Network Services,EDF ENERGY,0000623881," 53,080.96  ",
Department of Health,The Christie NHS Foundation Trust,26/09/2019,Clinical Systems,Capital,ELEKTA  LTD,0000623544," 54,664.96  ",
Department of Health,The Christie NHS Foundation Trust,19/09/2019,Drugs,Drugs,HEALTHCARE AT HOME LTD,0000623532," 31,400.00  ",
Department of Health,The Christie NHS Foundation Trust,19/09/2019,Computer Equipment,Finance & Business Development,HP INC.UK LIMITED,0000622123," 45,542.40  ",
Department of Health,The Christie NHS Foundation Trust,26/09/2019,Paterson Development,Capital,INTERSERVE CONSTRUCTION LTD,0000624679," 276,592.19  ",
Department of Health,The Christie NHS Foundation Trust,05/09/2019,Service Contract,Clinical Support & Specialist Surgery,INTUITIVE SURGICAL LTD,0000619595," 130,000.00  ",
Department of Health,The Christie NHS Foundation Trust,26/09/2019,Staff Travel,Staff Travel,KEY TRAVEL,0000624893," 26,435.12  ",
Department of Health,The Christie NHS Foundation Trust,09/09/2019,Rates 19/20,Estates & Facilities,M/CR CITY COUNCIL (RATES) DD,0000624002," 77,883.00  ",
Department of Health,The Christie NHS Foundation Trust,27/09/2019,Paterson Development,Estates & Facilities,MANCHESTER CITY COUNCIL,0000625315," 400,000.00  ",
Department of Health,The Christie NHS Foundation Trust,19/09/2019,PET Scans Jul 19,Christie Medical Physics,MANCHESTER UNIVERSITY NHS FT,0000623200," 120,262.00  ",
Department of Health,The Christie NHS Foundation Trust,19/09/2019,Block A Refurbishment,Estates & Facilities,MC FACILITIES SERVICE,0000622959," 48,185.00  ",
Department of Health,The Christie NHS Foundation Trust,12/09/2019,Blood Products,Network Services,NHS BLOOD AND TRANSPLANT,0000622616," 25,482.51  ",
Department of Health,The Christie NHS Foundation Trust,16/09/2019,Blood Products,Network Services,NHS BLOOD AND TRANSPLANT,0000625434," 172,291.34  ",
Department of Health,The Christie NHS Foundation Trust,16/09/2019,NHS Litigation (NHSLA),Finance & Business Development,NHS LITIGATION AUTHORITY,0000624592," 111,326.40  ",
Department of Health,The Christie NHS Foundation Trust,05/09/2019,Stock for all Wards & Departments,All Wards and Departments,NHS SUPPLY CHAIN,0000622070," 49,538.06  ",
Department of Health,The Christie NHS Foundation Trust,05/09/2019,Medical Equipment,Capital,NHS SUPPLY CHAIN,0000622122," 260,923.42  ",
Department of Health,The Christie NHS Foundation Trust,12/09/2019,Stock for all Wards & Departments,All Wards and Departments,NHS SUPPLY CHAIN,0000622481," 55,885.69  ",
Department of Health,The Christie NHS Foundation Trust,26/09/2019,Stock for all Wards & Departments,All Wards and Departments,NHS SUPPLY CHAIN,0000623781," 46,186.63  ",
Department of Health,The Christie NHS Foundation Trust,19/09/2019,Stock for all Wards & Departments,All Wards and Departments,NHS SUPPLY CHAIN,0000623916," 55,319.58  ",
Department of Health,The Christie NHS Foundation Trust,27/09/2019,Drugs,Drugs,NOVARTIS PHARMACEUTICALS UK LTD,0000625338," 257,184.00  ",
Department of Health,The Christie NHS Foundation Trust,27/09/2019,Drugs,Drugs,NOVARTIS PHARMACEUTICALS UK LTD,0000625339," 257,184.00  ",
Department of Health,The Christie NHS Foundation Trust,27/09/2019,Drugs,Drugs,NOVARTIS PHARMACEUTICALS UK LTD,0000625341," 257,184.00  ",
Department of Health,The Christie NHS Foundation Trust,26/09/2019,Proton Beam Development (PBT),Capital,S.I. SEALY & ASSOCIATES LTD,0000624704," 29,507.00  ",
Department of Health,The Christie NHS Foundation Trust,19/09/2019,E-Prescribing Project,Digital Services,SCC PLC,0000623002," 22,839.90  ",
Department of Health,The Christie NHS Foundation Trust,05/09/2019,Software Licences,Finance & Business Development,SOFTCAT PLC,0000620062," 94,500.00  ",
Department of Health,The Christie NHS Foundation Trust,19/09/2019,Software Licences,Finance & Business Development,SOFTCAT PLC,0000623165," 40,785.58  ",
Department of Health,The Christie NHS Foundation Trust,05/09/2019,QCNW ENVIRONMENTAL MONITORING,Clinical Support & Specialist Surgery,STOCKPORT NHS FOUNDATION TRUST,0000622441," 46,617.23  ",
Department of Health,The Christie NHS Foundation Trust,05/09/2019,Proton Beam Development (PBT),Capital,SYSTEM C HEALTHCARE,0000622277," 22,779.00  ",
Department of Health,The Christie NHS Foundation Trust,26/09/2019,Blood Products,Network Services,THE ANTHONY NOLAN BONE MARROW,0000618600," 29,704.48  ",
Department of Health,The Christie NHS Foundation Trust,12/09/2019,Patient Testing Service ,Clinical Support & Specialist Surgery,THE CHRISTIE PATHOLOGY PARTNERSHIP LLP,0000622435," 485,034.12  ",
Department of Health,The Christie NHS Foundation Trust,27/09/2019,Patient Testing Service ,Clinical Support & Specialist Surgery,THE CHRISTIE PATHOLOGY PARTNERSHIP LLP,0000624774," 433,984.53  ",
Department of Health,The Christie NHS Foundation Trust,27/09/2019,Energy Contract- Aug 19,Estates & Facilities,VEOLIA ENERGY &UTILITY SERVICES UK PLC,0000624274," 213,597.50  ",
